[Event "Early-Titled-Tuesday-Blitz-April-02-2024"]
[Site "Chess.com"]
[Date "2024.04.02"]
[Round "4"]
[White "ChainedDowntohell"]
[Black "Rashad_Zeynalli"]
[Result "1/2-1/2"]
[WhiteElo "2553"]
[BlackElo "2675"]
[TimeControl "180+1"]
[EndTime "8:40:23 PDT"]
[Termination "Game drawn - insufficient material"]

1. d4 {[%clk 0:03:00.9]} 1... d5 {[%clk 0:02:58.6]} 2. c4 {[%clk 0:03:00.7]}
2... e6 {[%clk 0:02:57.1]} 3. Nc3 {[%clk 0:03:00.2]} 3... Be7 {[%clk 0:02:57.4]}
4. Nf3 {[%clk 0:02:58.9]} 4... Nf6 {[%clk 0:02:57.1]} 5. Bg5 {[%clk 0:02:58.7]}
5... h6 {[%clk 0:02:56.9]} 6. Bxf6 {[%clk 0:02:57.8]} 6... Bxf6 {[%clk
0:02:57.8]} 7. e3 {[%clk 0:02:57.6]} 7... O-O {[%clk 0:02:57.3]} 8. Rc1 {[%clk
0:02:54.6]} 8... dxc4 {[%clk 0:02:57.8]} 9. Bxc4 {[%clk 0:02:54]} 9... Nd7
{[%clk 0:02:58.1]} 10. O-O {[%clk 0:02:51.7]} 10... c5 {[%clk 0:02:58.5]} 11.
Qe2 {[%clk 0:02:44.8]} 11... b6 {[%clk 0:02:52.1]} 12. Rfd1 {[%clk 0:02:43.3]}
12... cxd4 {[%clk 0:02:42.6]} 13. exd4 {[%clk 0:02:42]} 13... Bb7 {[%clk
0:02:40.6]} 14. d5 {[%clk 0:02:36.9]} 14... e5 {[%clk 0:02:28.4]} 15. Ne4 {[%clk
0:02:33]} 15... Qe7 {[%clk 0:02:09.9]} 16. d6 {[%clk 0:02:31.6]} 16... Qd8
{[%clk 0:02:08.4]} 17. Ba6 {[%clk 0:02:20.7]} 17... Bxa6 {[%clk 0:02:04.1]} 18.
Qxa6 {[%clk 0:02:20.2]} 18... Bg5 {[%clk 0:01:54.1]} 19. Nfxg5 {[%clk
0:02:16.2]} 19... hxg5 {[%clk 0:01:55]} 20. Rc7 {[%clk 0:02:14.7]} 20... f5
{[%clk 0:01:33]} 21. Nxg5 {[%clk 0:02:08.5]} 21... Qxg5 {[%clk 0:01:33.9]} 22.
Rxd7 {[%clk 0:02:04.4]} 22... f4 {[%clk 0:01:33.5]} 23. Qc4+ {[%clk 0:01:47.8]}
23... Kh8 {[%clk 0:01:31.6]} 24. Qe6 {[%clk 0:01:44.9]} 24... Rf5 {[%clk
0:01:20.1]} 25. Qe7 {[%clk 0:01:36.7]} 25... Rf6 {[%clk 0:01:16.2]} 26. Rd8+
{[%clk 0:01:16.6]} 26... Rxd8 {[%clk 0:01:16.3]} 27. Qxd8+ {[%clk 0:01:17.5]}
27... Kh7 {[%clk 0:01:16.7]} 28. d7 {[%clk 0:01:15.7]} 28... Rd6 {[%clk
0:01:10.4]} 29. Rxd6 {[%clk 0:00:45.4]} 29... Qxd8 {[%clk 0:01:10.6]} 30. g3
{[%clk 0:00:44]} 30... f3 {[%clk 0:01:08.5]} 31. h4 {[%clk 0:00:38.8]} 31... Kg8
{[%clk 0:01:05.1]} 32. Kh2 {[%clk 0:00:38.2]} 32... Kf7 {[%clk 0:01:04.7]} 33.
Kh3 {[%clk 0:00:36.8]} 33... Ke7 {[%clk 0:01:01.9]} 34. Rd2 {[%clk 0:00:36.5]}
34... g5 {[%clk 0:00:59.3]} 35. hxg5 {[%clk 0:00:31.4]} 35... Qh8+ {[%clk
0:00:58.4]} 36. Kg4 {[%clk 0:00:29.9]} 36... Kd8 {[%clk 0:00:59.3]} 37. Kxf3
{[%clk 0:00:25.8]} 37... Qh3 {[%clk 0:00:59]} 38. Ke3 {[%clk 0:00:19.9]} 38...
Qg4 {[%clk 0:00:54.8]} 39. a3 {[%clk 0:00:16.3]} 39... Qxg5+ {[%clk 0:00:54.9]}
40. Ke2 {[%clk 0:00:16.8]} 40... Qg4+ {[%clk 0:00:53.5]} 41. Ke3 {[%clk
0:00:17.7]} 41... Qc4 {[%clk 0:00:51.6]} 42. Rd3 {[%clk 0:00:16.7]} 42... Qc1+
{[%clk 0:00:47.5]} 43. Rd2 {[%clk 0:00:17]} 43... b5 {[%clk 0:00:45.3]} 44. Ke2
{[%clk 0:00:17.3]} 44... a5 {[%clk 0:00:41.8]} 45. Ke3 {[%clk 0:00:17.6]} 45...
b4 {[%clk 0:00:39.7]} 46. axb4 {[%clk 0:00:17.8]} 46... axb4 {[%clk 0:00:40.6]}
47. Ke2 {[%clk 0:00:18.3]} 47... Qc4+ {[%clk 0:00:36.2]} 48. Ke1 {[%clk
0:00:18.2]} 48... e4 {[%clk 0:00:34.5]} 49. Rd1 {[%clk 0:00:15.1]} 49... Qc7
{[%clk 0:00:23.5]} 50. Rd2 {[%clk 0:00:15.6]} 50... e3 {[%clk 0:00:22.6]} 51.
fxe3 {[%clk 0:00:16.2]} 51... Qxg3+ {[%clk 0:00:22.2]} 52. Ke2 {[%clk
0:00:16.7]} 52... b3 {[%clk 0:00:20.5]} 53. Kd3 {[%clk 0:00:13.3]} 53... Kxd7
{[%clk 0:00:19.7]} 54. Kc3+ {[%clk 0:00:13.9]} 54... Kc6 {[%clk 0:00:19.7]} 55.
Kxb3 {[%clk 0:00:14.3]} 55... Qxe3+ {[%clk 0:00:19.9]} 56. Kc2 {[%clk
0:00:14.8]} 56... Kc5 {[%clk 0:00:20.2]} 57. Rd3 {[%clk 0:00:08.9]} 57... Qe4
{[%clk 0:00:19.8]} 58. Kd2 {[%clk 0:00:06.6]} 58... Kc4 {[%clk 0:00:18.3]} 59.
Rc3+ {[%clk 0:00:06.3]} 59... Kd4 {[%clk 0:00:18.8]} 60. Kc1 {[%clk 0:00:07]}
60... Qe2 {[%clk 0:00:18.2]} 61. Ra3 {[%clk 0:00:07.2]} 61... Kc4 {[%clk
0:00:17.4]} 62. Rc3+ {[%clk 0:00:07.8]} 62... Kb4 {[%clk 0:00:17.3]} 63. Ra3
{[%clk 0:00:08.7]} 63... Qe4 {[%clk 0:00:15.9]} 64. Rc3 {[%clk 0:00:09.6]} 64...
Qf5 {[%clk 0:00:14.8]} 65. Ra3 {[%clk 0:00:10.5]} 65... Qd5 {[%clk 0:00:14.3]}
66. Rc3 {[%clk 0:00:11]} 66... Qd4 {[%clk 0:00:13.3]} 67. Ra3 {[%clk 0:00:11.6]}
67... Kc4 {[%clk 0:00:13.4]} 68. Rc3+ {[%clk 0:00:12.1]} 68... Kd5 {[%clk
0:00:14]} 69. Ra3 {[%clk 0:00:11.7]} 69... Ke4 {[%clk 0:00:14]} 70. Rc3 {[%clk
0:00:11.4]} 70... Qg1+ {[%clk 0:00:12.6]} 71. Kc2 {[%clk 0:00:11.2]} 71... Qf2+
{[%clk 0:00:13]} 72. Kc1 {[%clk 0:00:11.1]} 72... Qe1+ {[%clk 0:00:13]} 73. Kc2
{[%clk 0:00:11.3]} 73... Qe2+ {[%clk 0:00:13.5]} 74. Kc1 {[%clk 0:00:11.4]}
74... Kd4 {[%clk 0:00:13.7]} 75. Ra3 {[%clk 0:00:11.4]} 75... Kc4 {[%clk
0:00:13.3]} 76. Rc3+ {[%clk 0:00:11.9]} 76... Kb4 {[%clk 0:00:13.7]} 77. Ra3
{[%clk 0:00:12.4]} 77... Qc4+ {[%clk 0:00:12.7]} 78. Rc3 {[%clk 0:00:12.1]}
78... Qxc3+ {[%clk 0:00:13.3]} 79. bxc3+ {[%clk 0:00:12.5]} 79... Kxc3 {[%clk
0:00:14.2]} 1/2-1/2

[Event "Early-Titled-Tuesday-Blitz-April-02-2024"]
[Site "Chess.com"]
[Date "2024.04.02"]
[Round "4"]
[White "ATM622"]
[Black "javirec"]
[Result "1-0"]
[WhiteElo "2509"]
[BlackElo "2271"]
[TimeControl "180+1"]
[EndTime "8:40:24 PDT"]
[Termination "ATM622 won on time"]

1. d4 {[%clk 0:03:00.9]} 1... Nf6 {[%clk 0:02:59.2]} 2. c4 {[%clk 0:03:00.3]}
2... d6 {[%clk 0:02:58.9]} 3. g3 {[%clk 0:03:00.5]} 3... e5 {[%clk 0:02:56.3]}
4. dxe5 {[%clk 0:02:59.8]} 4... dxe5 {[%clk 0:02:56.2]} 5. Qxd8+ {[%clk
0:02:59.4]} 5... Kxd8 {[%clk 0:02:56.8]} 6. Nc3 {[%clk 0:02:59.3]} 6... Be6
{[%clk 0:02:55.4]} 7. Bg2 {[%clk 0:02:57.9]} 7... c6 {[%clk 0:02:54.2]} 8. b3
{[%clk 0:02:56.5]} 8... a5 {[%clk 0:02:53.6]} 9. Bb2 {[%clk 0:02:56.1]} 9...
Nbd7 {[%clk 0:02:49.8]} 10. O-O-O {[%clk 0:02:55.8]} 10... Kc7 {[%clk
0:02:49.8]} 11. Nf3 {[%clk 0:02:50.5]} 11... Ng4 {[%clk 0:02:46.1]} 12. Rhf1
{[%clk 0:02:48.7]} 12... f6 {[%clk 0:02:43.2]} 13. h3 {[%clk 0:02:47.1]} 13...
Nh6 {[%clk 0:02:42.9]} 14. g4 {[%clk 0:02:47.3]} 14... Nf7 {[%clk 0:02:42.2]}
15. Nd2 {[%clk 0:02:43.6]} 15... h5 {[%clk 0:02:40.2]} 16. f3 {[%clk 0:02:39]}
16... h4 {[%clk 0:02:38.5]} 17. Nde4 {[%clk 0:02:34.3]} 17... Nc5 {[%clk
0:02:31.7]} 18. Kc2 {[%clk 0:02:24.4]} 18... Nxe4 {[%clk 0:02:31.2]} 19. fxe4
{[%clk 0:02:15.3]} 19... Bc5 {[%clk 0:02:26.8]} 20. Rd3 {[%clk 0:02:08.2]} 20...
Ng5 {[%clk 0:02:19.5]} 21. Na4 {[%clk 0:02:03.9]} 21... Be7 {[%clk 0:02:08.6]}
22. Bc1 {[%clk 0:02:02.3]} 22... b5 {[%clk 0:02:03.7]} 23. cxb5 {[%clk
0:01:59.5]} 23... cxb5 {[%clk 0:02:04.6]} 24. Nc3 {[%clk 0:01:59.8]} 24... b4
{[%clk 0:01:52.3]} 25. Nd5+ {[%clk 0:01:59.7]} 25... Bxd5 {[%clk 0:01:52]} 26.
exd5 {[%clk 0:01:54.8]} 26... Kd6 {[%clk 0:01:47]} 27. Be3 {[%clk 0:01:45.7]}
27... Rac8+ {[%clk 0:01:41.8]} 28. Kb1 {[%clk 0:01:45.8]} 28... Nf7 {[%clk
0:01:41.3]} 29. Be4 {[%clk 0:01:41.3]} 29... a4 {[%clk 0:01:24]} 30. Bf5 {[%clk
0:01:37.7]} 30... Rc3 {[%clk 0:01:17]} 31. Rxc3 {[%clk 0:01:25.5]} 31... bxc3
{[%clk 0:01:17.9]} 32. Kc2 {[%clk 0:01:16.8]} 32... axb3+ {[%clk 0:01:17]} 33.
axb3 {[%clk 0:01:14.9]} 33... Ra8 {[%clk 0:01:10.4]} 34. Kxc3 {[%clk 0:01:11.4]}
34... Nd8 {[%clk 0:01:03.7]} 35. Kc4 {[%clk 0:01:04.6]} 35... Nb7 {[%clk
0:01:02.5]} 36. b4 {[%clk 0:01:04.7]} 36... Kc7 {[%clk 0:01:01.3]} 37. Rc1
{[%clk 0:00:57.3]} 37... Ra3 {[%clk 0:00:36.6]} 38. Kb5+ {[%clk 0:00:44.2]}
38... Kd6 {[%clk 0:00:36.7]} 39. Bc5+ {[%clk 0:00:41]} 39... Nxc5 {[%clk
0:00:32.5]} 40. bxc5+ {[%clk 0:00:41.3]} 40... Kc7 {[%clk 0:00:30.3]} 41. d6+
{[%clk 0:00:37.7]} 41... Bxd6 {[%clk 0:00:30.5]} 42. cxd6+ {[%clk 0:00:38.6]}
42... Kxd6 {[%clk 0:00:31.1]} 43. Rd1+ {[%clk 0:00:35.9]} 43... Ke7 {[%clk
0:00:27.3]} 44. Rd3 {[%clk 0:00:32]} 44... Ra2 {[%clk 0:00:24.8]} 45. Re3 {[%clk
0:00:28.9]} 45... Kd6 {[%clk 0:00:21.9]} 46. Kc4 {[%clk 0:00:23.9]} 46... Ra4+
{[%clk 0:00:14.7]} 47. Kd3 {[%clk 0:00:23.9]} 47... Ra3+ {[%clk 0:00:14.8]} 48.
Ke4 {[%clk 0:00:21.7]} 48... Ra4+ {[%clk 0:00:15.1]} 49. Kf3 {[%clk 0:00:22]}
49... Rf4+ {[%clk 0:00:14.6]} 50. Kg2 {[%clk 0:00:22.3]} 50... Ke7 {[%clk
0:00:11]} 51. Rd3 {[%clk 0:00:20.8]} 51... Ke8 {[%clk 0:00:07.8]} 52. Ra3 {[%clk
0:00:18.9]} 52... Rd4 {[%clk 0:00:06.4]} 53. Ra7 {[%clk 0:00:16.6]} 53... g5
{[%clk 0:00:06.5]} 54. Bg6+ {[%clk 0:00:14.8]} 54... Kd8 {[%clk 0:00:06.8]} 55.
Rf7 {[%clk 0:00:12.5]} 55... Rd6 {[%clk 0:00:04.1]} 56. Kf3 {[%clk 0:00:12.8]}
56... Rb6 {[%clk 0:00:03.1]} 57. Ke4 {[%clk 0:00:06.3]} 57... Rb4+ {[%clk
0:00:03.4]} 58. Kf5 {[%clk 0:00:06.4]} 58... Rf4+ {[%clk 0:00:04.1]} 59. Ke6
{[%clk 0:00:06.7]} 59... Rf2 {[%clk 0:00:04.7]} 60. Bd3 {[%clk 0:00:04.9]} 60...
e4 {[%clk 0:00:04.4]} 61. Bb5 {[%clk 0:00:03.5]} 61... Rh2 {[%clk 0:00:02]} 62.
Kxf6 {[%clk 0:00:02.3]} 62... Rxh3 {[%clk 0:00:01.8]} 63. Kxg5 {[%clk
0:00:02.6]} 63... Re3 {[%clk 0:00:01.7]} 64. Rh7 {[%clk 0:00:02.5]} 64... h3
{[%clk 0:00:02.6]} 65. Kf4 {[%clk 0:00:02.4]} 65... Kc8 {[%clk 0:00:03.5]} 66.
Kxe3 {[%clk 0:00:02.3]} 1-0

[Event "Early-Titled-Tuesday-Blitz-April-02-2024"]
[Site "Chess.com"]
[Date "2024.04.02"]
[Round "4"]
[White "Korchmar_Vasiliy"]
[Black "Bauman_Guy"]
[Result "1/2-1/2"]
[WhiteElo "2738"]
[BlackElo "2903"]
[TimeControl "180+1"]
[EndTime "8:40:25 PDT"]
[Termination "Game drawn by repetition"]

1. e4 {[%clk 0:03:00.9]} 1... c6 {[%clk 0:03:00]} 2. d4 {[%clk 0:03:01]} 2... d5
{[%clk 0:03:00.6]} 3. exd5 {[%clk 0:03:01.9]} 3... cxd5 {[%clk 0:03:01.4]} 4.
Bd3 {[%clk 0:03:02.4]} 4... Nf6 {[%clk 0:03:01.8]} 5. h3 {[%clk 0:03:01.9]} 5...
g6 {[%clk 0:03:02.3]} 6. Nf3 {[%clk 0:03:00.7]} 6... Bg7 {[%clk 0:03:02.9]} 7.
O-O {[%clk 0:03:00.7]} 7... Nc6 {[%clk 0:03:03.5]} 8. c3 {[%clk 0:03:00.9]} 8...
O-O {[%clk 0:03:04.1]} 9. Bf4 {[%clk 0:02:54.1]} 9... Bf5 {[%clk 0:03:03.9]} 10.
Bxf5 {[%clk 0:02:46.8]} 10... gxf5 {[%clk 0:03:04.8]} 11. Nbd2 {[%clk
0:02:46.2]} 11... e6 {[%clk 0:03:05.1]} 12. Ne1 {[%clk 0:02:44.5]} 12... Ne4
{[%clk 0:03:03.9]} 13. Nd3 {[%clk 0:02:43.7]} 13... Kh8 {[%clk 0:03:04.5]} 14.
f3 {[%clk 0:02:41.9]} 14... Nf6 {[%clk 0:03:04.1]} 15. Nb3 {[%clk 0:02:29.2]}
15... Rg8 {[%clk 0:03:00.1]} 16. Kh1 {[%clk 0:02:28.1]} 16... Nh5 {[%clk
0:02:49.5]} 17. Bh2 {[%clk 0:02:27.6]} 17... Qg5 {[%clk 0:02:48.8]} 18. g4
{[%clk 0:02:11.8]} 18... Nf6 {[%clk 0:02:38.4]} 19. Rg1 {[%clk 0:01:37.4]} 19...
h5 {[%clk 0:02:12.9]} 20. gxh5 {[%clk 0:01:12.1]} 20... Qxh5 {[%clk 0:02:11.4]}
21. Nf4 {[%clk 0:01:12.4]} 21... Qh7 {[%clk 0:02:07.7]} 22. Nc5 {[%clk
0:01:12.4]} 22... Nh5 {[%clk 0:01:56.2]} 23. Nxh5 {[%clk 0:00:59.3]} 23... Qxh5
{[%clk 0:01:55.7]} 24. Nxb7 {[%clk 0:00:59.9]} 24... f4 {[%clk 0:01:06.7]} 25.
Rg4 {[%clk 0:00:48.2]} 25... Rab8 {[%clk 0:00:44.7]} 26. Nd6 {[%clk 0:00:48.6]}
26... Rxb2 {[%clk 0:00:43.6]} 27. Nxf7+ {[%clk 0:00:37.7]} 27... Qxf7 {[%clk
0:00:38.3]} 28. Rh4+ {[%clk 0:00:37.9]} 28... Bh6 {[%clk 0:00:38.7]} 29. Rxh6+
{[%clk 0:00:38.2]} 29... Kg7 {[%clk 0:00:39.4]} 30. Rh4 {[%clk 0:00:33.9]} 30...
Ne7 {[%clk 0:00:36.6]} 31. Bxf4 {[%clk 0:00:22]} 31... Nf5 {[%clk 0:00:23.7]}
32. Be5+ {[%clk 0:00:22.3]} 32... Kf8 {[%clk 0:00:24.4]} 33. Rg4 {[%clk
0:00:19.1]} 33... Qh5 {[%clk 0:00:23.9]} 34. Qf1 {[%clk 0:00:12.8]} 34... Ne3
{[%clk 0:00:17.4]} 35. Rxg8+ {[%clk 0:00:12]} 35... Kxg8 {[%clk 0:00:18.3]} 36.
Qg1+ {[%clk 0:00:12.2]} 36... Rg2 {[%clk 0:00:18.8]} 37. Qxg2+ {[%clk 0:00:08]}
37... Nxg2 {[%clk 0:00:19.7]} 38. Kxg2 {[%clk 0:00:08.9]} 38... Qg6+ {[%clk
0:00:20.3]} 39. Kh1 {[%clk 0:00:06.6]} 39... Qc2 {[%clk 0:00:20.2]} 40. Rg1+
{[%clk 0:00:06.5]} 40... Kf8 {[%clk 0:00:20.7]} 41. Rg7 {[%clk 0:00:06]} 41...
Qxa2 {[%clk 0:00:19.7]} 42. Rb7 {[%clk 0:00:05.8]} 42... a5 {[%clk 0:00:19]} 43.
h4 {[%clk 0:00:05.9]} 43... Qf2 {[%clk 0:00:17.4]} 44. Ra7 {[%clk 0:00:03.7]}
44... Qxh4+ {[%clk 0:00:15.5]} 45. Kg2 {[%clk 0:00:03.8]} 45... Qg5+ {[%clk
0:00:15.6]} 46. Kh3 {[%clk 0:00:02.6]} 46... Qd8 {[%clk 0:00:10.9]} 47. Rb7
{[%clk 0:00:02]} 47... Qg5 {[%clk 0:00:04.1]} 48. Ra7 {[%clk 0:00:02.2]} 48...
Qf5+ {[%clk 0:00:04.3]} 49. Kg3 {[%clk 0:00:01.9]} 49... Qg6+ {[%clk 0:00:04.9]}
50. Kh3 {[%clk 0:00:02.3]} 50... Qh6+ {[%clk 0:00:03.4]} 51. Kg3 {[%clk
0:00:02.7]} 51... Qd2 {[%clk 0:00:02.5]} 52. Rxa5 {[%clk 0:00:02.5]} 52... Qe1+
{[%clk 0:00:03.1]} 53. Kh3 {[%clk 0:00:02.2]} 53... Qxc3 {[%clk 0:00:04]} 54.
Ra7 {[%clk 0:00:02]} 54... Qxf3+ {[%clk 0:00:03.5]} 55. Kh4 {[%clk 0:00:02.5]}
55... Qf5 {[%clk 0:00:03.8]} 56. Rc7 {[%clk 0:00:02]} 56... Ke8 {[%clk 0:00:04]}
57. Kg3 {[%clk 0:00:02.4]} 57... Kd8 {[%clk 0:00:04.3]} 58. Rg7 {[%clk
0:00:02.7]} 58... Kc8 {[%clk 0:00:04]} 59. Kh4 {[%clk 0:00:03]} 59... Qe4+
{[%clk 0:00:03.7]} 60. Kg5 {[%clk 0:00:03]} 60... Qf5+ {[%clk 0:00:04.4]} 61.
Kh6 {[%clk 0:00:02.9]} 61... Kd8 {[%clk 0:00:05]} 62. Ra7 {[%clk 0:00:02.5]}
62... Ke8 {[%clk 0:00:05.1]} 63. Rc7 {[%clk 0:00:02.3]} 63... Kd8 {[%clk
0:00:05]} 64. Rg7 {[%clk 0:00:02.2]} 64... Qe4 {[%clk 0:00:05.2]} 65. Kg5 {[%clk
0:00:02.1]} 65... Qf5+ {[%clk 0:00:05.4]} 66. Kh6 {[%clk 0:00:02.6]} 66... Qf3
{[%clk 0:00:05.5]} 67. Kg5 {[%clk 0:00:02.7]} 67... Qh3 {[%clk 0:00:05.5]} 68.
Kg6 {[%clk 0:00:02.9]} 68... Qf5+ {[%clk 0:00:05.8]} 69. Kh6 {[%clk 0:00:03.3]}
1/2-1/2

[Event "Early-Titled-Tuesday-Blitz-April-02-2024"]
[Site "Chess.com"]
[Date "2024.04.02"]
[Round "4"]
[White "dosto07"]
[Black "akanga001"]
[Result "0-1"]
[WhiteElo "2455"]
[BlackElo "2132"]
[TimeControl "180+1"]
[EndTime "8:40:25 PDT"]
[Termination "akanga001 won by checkmate"]

1. e4 {[%clk 0:03:00.9]} 1... e5 {[%clk 0:02:57.2]} 2. Nf3 {[%clk 0:03:01.1]}
2... Nc6 {[%clk 0:02:56.4]} 3. Bb5 {[%clk 0:03:01.3]} 3... a6 {[%clk 0:02:55]}
4. Ba4 {[%clk 0:03:01.6]} 4... Nf6 {[%clk 0:02:53.2]} 5. O-O {[%clk 0:03:01.6]}
5... Be7 {[%clk 0:02:50.2]} 6. Bxc6 {[%clk 0:03:01.6]} 6... dxc6 {[%clk
0:02:46]} 7. d3 {[%clk 0:03:02.1]} 7... Nd7 {[%clk 0:02:44]} 8. Nbd2 {[%clk
0:03:02.1]} 8... f6 {[%clk 0:02:44.1]} 9. Nc4 {[%clk 0:03:00.6]} 9... O-O {[%clk
0:02:43.5]} 10. Nh4 {[%clk 0:02:55.8]} 10... a5 {[%clk 0:02:37]} 11. Nf5 {[%clk
0:02:55.2]} 11... b5 {[%clk 0:02:36.5]} 12. Nce3 {[%clk 0:02:48.4]} 12... Bc5
{[%clk 0:02:35.6]} 13. a4 {[%clk 0:02:47.1]} 13... b4 {[%clk 0:02:34.7]} 14. Kh1
{[%clk 0:02:40.1]} 14... Nb6 {[%clk 0:02:29.7]} 15. b3 {[%clk 0:02:34.1]} 15...
Kh8 {[%clk 0:02:28.6]} 16. Bb2 {[%clk 0:02:33.1]} 16... g6 {[%clk 0:02:26.9]}
17. d4 {[%clk 0:02:25.1]} 17... exd4 {[%clk 0:02:19.4]} 18. Bxd4 {[%clk
0:02:17]} 18... Bxd4 {[%clk 0:02:10]} 19. Nxd4 {[%clk 0:02:16.8]} 19... Qe8
{[%clk 0:02:09.2]} 20. f3 {[%clk 0:02:13.6]} 20... Bb7 {[%clk 0:02:01.5]} 21.
Qe1 {[%clk 0:02:06]} 21... Nd7 {[%clk 0:02:01.1]} 22. Ng4 {[%clk 0:02:04.6]}
22... Ne5 {[%clk 0:01:59.8]} 23. Nxe5 {[%clk 0:02:02.2]} 23... Qxe5 {[%clk
0:01:59.4]} 24. Rd1 {[%clk 0:02:00.8]} 24... Rad8 {[%clk 0:01:57.2]} 25. Qe3
{[%clk 0:01:54.4]} 25... Rd6 {[%clk 0:01:53.8]} 26. f4 {[%clk 0:01:53.7]} 26...
Qe7 {[%clk 0:01:52.3]} 27. Nf3 {[%clk 0:01:52.5]} 27... Rfd8 {[%clk 0:01:49.2]}
28. Rde1 {[%clk 0:01:41.2]} 28... Re6 {[%clk 0:01:37.6]} 29. e5 {[%clk
0:01:30.1]} 29... c5 {[%clk 0:01:35.8]} 30. Nd2 {[%clk 0:01:24.1]} 30... fxe5
{[%clk 0:01:26.3]} 31. fxe5 {[%clk 0:01:23.5]} 31... Re8 {[%clk 0:01:24.1]} 32.
Nc4 {[%clk 0:01:23.4]} 32... Bd5 {[%clk 0:01:21.1]} 33. Qh6 {[%clk 0:01:14.2]}
33... Bxc4 {[%clk 0:01:17.4]} 34. bxc4 {[%clk 0:01:14]} 34... Qg7 {[%clk
0:01:09.1]} 35. Qg5 {[%clk 0:01:05.5]} 35... Rxe5 {[%clk 0:01:05.9]} 36. Rxe5
{[%clk 0:01:05]} 36... Rxe5 {[%clk 0:01:02.2]} 37. Qd8+ {[%clk 0:00:56.9]} 37...
Qg8 {[%clk 0:01:01.8]} 38. Qxc7 {[%clk 0:00:54.9]} 38... Qe8 {[%clk 0:00:58.9]}
39. h3 {[%clk 0:00:50.1]} 39... Re1 {[%clk 0:00:57.1]} 40. Rxe1 {[%clk
0:00:49.6]} 40... Qxe1+ {[%clk 0:00:56.2]} 41. Kh2 {[%clk 0:00:50.5]} 41... Qe3
{[%clk 0:00:52.3]} 42. Qd8+ {[%clk 0:00:39.2]} 42... Kg7 {[%clk 0:00:50.7]} 43.
Qc7+ {[%clk 0:00:39.2]} 43... Kh6 {[%clk 0:00:48.3]} 44. Qxa5 {[%clk 0:00:36]}
44... Qf4+ {[%clk 0:00:46.7]} 45. Kg1 {[%clk 0:00:36.2]} 45... Qe3+ {[%clk
0:00:45.8]} 46. Kf1 {[%clk 0:00:36.2]} 46... Qc1+ {[%clk 0:00:45.7]} 47. Kf2
{[%clk 0:00:36]} 47... Qxc2+ {[%clk 0:00:46.2]} 48. Kg3 {[%clk 0:00:36.3]} 48...
Qc3+ {[%clk 0:00:46.1]} 49. Kh2 {[%clk 0:00:36.3]} 49... Qxc4 {[%clk 0:00:44.8]}
50. Qd8 {[%clk 0:00:30]} 50... b3 {[%clk 0:00:43.4]} 51. Qf8+ {[%clk 0:00:29.6]}
51... Kg5 {[%clk 0:00:40.5]} 52. Qd8+ {[%clk 0:00:29.1]} 52... Kh6 {[%clk
0:00:37.2]} 53. Qd2+ {[%clk 0:00:27.7]} 53... Kg7 {[%clk 0:00:36.9]} 54. Qd7+
{[%clk 0:00:27.4]} 54... Kf6 {[%clk 0:00:36.1]} 55. Qd6+ {[%clk 0:00:27.6]}
55... Kf5 {[%clk 0:00:35.1]} 56. g4+ {[%clk 0:00:26.5]} 56... Ke4 {[%clk
0:00:34.1]} 57. Qe7+ {[%clk 0:00:25.4]} 57... Kd3 {[%clk 0:00:34.2]} 58. Qd6+
{[%clk 0:00:25.5]} 58... Kc2 {[%clk 0:00:33.2]} 59. a5 {[%clk 0:00:21]} 59... b2
{[%clk 0:00:33.3]} 60. a6 {[%clk 0:00:15.8]} 60... b1=Q {[%clk 0:00:32.6]} 61.
a7 {[%clk 0:00:15.8]} 61... Qe2+ {[%clk 0:00:31.5]} 62. Kg3 {[%clk 0:00:15.1]}
62... Qbe1+ {[%clk 0:00:31.2]} 63. Kf4 {[%clk 0:00:14.4]} 63... Qh2+ {[%clk
0:00:28.2]} 64. Kg5 {[%clk 0:00:14.4]} 64... Qxd6 {[%clk 0:00:26.2]} 65. Kh6
{[%clk 0:00:15.3]} 65... Qa6 {[%clk 0:00:23.3]} 66. a8=Q {[%clk 0:00:14.5]}
66... Qxa8 {[%clk 0:00:22.9]} 67. g5 {[%clk 0:00:12.5]} 67... Qh4+ {[%clk
0:00:22]} 68. Kg7 {[%clk 0:00:12.8]} 68... Qb7+ {[%clk 0:00:20.9]} 69. Kh8
{[%clk 0:00:12.8]} 69... Qc8+ {[%clk 0:00:18.7]} 70. Kg7 {[%clk 0:00:11.8]}
70... Qd7+ {[%clk 0:00:18.8]} 71. Kh8 {[%clk 0:00:11.9]} 71... Qe8+ {[%clk
0:00:18.3]} 72. Kg7 {[%clk 0:00:12.3]} 72... Qd4+ {[%clk 0:00:18]} 73. Kh6
{[%clk 0:00:09.5]} 73... Qf8+ {[%clk 0:00:16.3]} 74. Kxh7 {[%clk 0:00:09.6]}
74... Qd7+ {[%clk 0:00:16.4]} 75. Kxg6 {[%clk 0:00:09.2]} 75... Qdf5+ {[%clk
0:00:15.5]} 76. Kh5 {[%clk 0:00:05]} 76... Qh8# {[%clk 0:00:15.3]} 0-1